Workbook

Sheet Uvod
D2: Program pro analýzu jednotlivých ukazatelů
D19: Nápověda

Sheet Aktiva
D6: AKTIVA
E7: 2007-12-31 | F7: 2008-12-31 | G7: 2009-12-31 | H7: 2010-12-31 | I7: 2011-12-31 | J7: 2012-12-31 | K7: 2013-12-31 | L7: 2014-12-31 | M7: 2015-12-31 | N7: 2016-12-31 | O7: 2017-12-31 | P7: 2018-12-31
D8: AKTIVA CELKEM | E8: =E9+E10+E38+E70 -> 1568557 | F8: =F9+F10+F38+F70 -> 1679538 | G8: 1434359 | H8: 1533886 | I8: =I9+I10+I38+I70 -> 1760328 | J8: =J9+J10+J38+J70 -> 1737093 | K8: =K9+K10+K38+K70 -> 0 | L8: 0 | M8: 0 | N8: 0 | O8: 0 | P8: 0
A9: A. | D9: Pohledávky za upsaný základní kapitál | E9: 0 | F9: 0 | G9: 0 | H9: 0 | I9: 0 | J9: 0 | K9: 0 | L9: 0 | M9: 0 | N9: 0 | O9: 0 | P9: 0
A10: B. | D10: Dlouhodobý majetek | E10: =E11+E20+E30 -> 817888 | F10: =F11+F20+F30 -> 940981 | G10: 917328 | H10: 925082 | I10: =I11+I20+I30 -> 884865 | J10: 835944 | K10: 0 | L10: 0 | M10: 0 | N10: 0 | O10: 0 | P10: 0
A11: B. | B11: I. | D11: Dlouhodobý nehmotný majetek | E11: =E12+E13+E14+E15+E16+E17+E18+E19 -> 2220 | F11: 986 | G11: 252 | H11: 812 | I11: =I12+I13+I14+I15+I16+I17+I18+I19 -> 1911 | J11: =SUM(J12:J19) -> 5313 | K11: =SUM(K12:K19) -> 0 | L11: 0 | M11: 0 | N11: 0 | O11: 0 | P11: 0
A12: B. | B12: I. | C12: 1 | D12: Zřizovací výdaje | E12: 0 | F12: 0 | G12: 0 | H12: 0 | I12: 0 | J12: 0
C13: 2 | D13: Nehmotné výsledky výzkumu a vývoje | E13: 0 | F13: 0 | G13: 0 | H13: 0 | I13: 0 | J13: 0
C14: 3 | D14: Software | E14: 1065 | F14: 0 | G14: 252 | H14: 0 | I14: 1450 | J14: 2990
C15: 4 | D15: Ocenitelná práva | E15: 0 | F15: 0 | G15: 0 | H15: 0 | I15: 0 | J15: 0
C16: 5 | D16: Goodwill | E16: 0 | F16: 0 | G16: 0 | H16: 0 | I16: 0 | J16: 0
C17: 6 | D17: Jiný dlouhodobý nehmotný majetek | E17: 0 | F17: 0 | G17: 0 | H17: 169 | I17: 56 | J17: 348
C18: 7 | D18: Nedokončený dlouhodobý nehmotný majetek | E18: 1155 | F18: 986 | G18: 0 | H18: 0 | I18: 405 | J18: 1975
C19: 8 | D19: Poskytnuté zálohy na dlouhodobý nehmotný majetek | E19: 0 | F19: 0 | G19: 0 | H19: 643 | I19: 0 | J19: 0
A20: B. | B20: II. | D20: Dlouhodobý hmotný majetek | E20: =SUM(E21:E29) -> 797834 | F20: =SUM(F21:F29) -> 925495 | G20: 877838 | H20: 872149 | I20: 826024 | J20: 809014 | K20: 0 | L20: 0 | M20: 0 | N20: 0 | O20: 0 | P20: 0
A21: B. | B21: II. | C21: 1 | D21: Pozemky | E21: 5560 | F21: 5560 | G21: 5560 | H21: 5560 | I21: 5560 | J21: 5560
C22: 2 | D22: Stavby | E22: 135152 | F22: 145545 | G22: 139355 | H22: 133315 | I22: 138707 | J22: 128555
C23: 3 | D23: Samostatné movité věci a soubory movitých věcí | E23: 550530 | F23: 683191 | G23: 737617 | H23: 672890 | I23: 649010 | J23: 611163
C24: 4 | D24: Pěstitelské celky trvalých porostů | E24: 0 | F24: 0 | G24: 0 | I24: 0 | J24: 0
C25: 5 | D25: Dospělá zvířata a jejich skupiny | E25: 0 | F25: 0 | G25: 0 | I25: 0 | J25: 0
C26: 6 | D26: Jiný dlouhodobý hmotný majetek | E26: 0 | F26: 0 | G26: 0 | I26: 0 | J26: 0
C27: 7 | D27: Nedokončený dlouhodobý hmotný majetek | E27: 36443 | F27: 82236 | G27: 435 | H27: 24223 | I27: 8841 | J27: 45650
C28: 8 | D28: Poskytnuté zálohy na dlouhodobý hmotný majetek | E28: 83477 | F28: 20292 | G28: 4201 | H28: 43492 | I28: 29237 | J28: 21418
C29: 9 | D29: Oceňovací rozdíl k nabytému majetku | E29: -13328 | F29: -11329 | G29: -9330 | H29: -7331 | I29: -5331 | J29: -3332
A30: B. | B30: III. | D30: Dlouhodobý finanční majetek | E30: =SUM(E31:E37) -> 17834 | F30: 14500 | G30: 39238 | H30: 52121 | I30: =SUM(I31:I37) -> 56930 | J30: =SUM(J31:J37) -> 21617 | K30: 0 | L30: 0 | M30: 0 | N30: 0 | O30: 0 | P30: 0
A31: B. | B31: III. | C31: 1 | D31: Podíly - ovládaná osoba | E31: 17824 | F31: 14490 | G31: 39228 | H31: 41460 | I31: 56920 | J31: 21607
C32: 2 | D32: Podíly v účetních jednotkách pod podstatným vlivem | E32: 0 | F32: 0 | G32: 0 | H32: 0 | I32: 0 | J32: 0
C33: 3 | D33: Ostatní dlouhodobé cenné papíry a podíly | E33: 10 | F33: 10 | G33: 10 | H33: 10 | I33: 10 | J33: 10
C34: 4 | D34: Půjčky a úvěry - ovládaná nebo ovládající osoba, podstatný vliv | E34: 0 | F34: 0 | G34: 0 | H34: 0 | I34: 0 | J34: 0
C35: 5 | D35: Jiný dlouhodobý finanční majetek | E35: 0 | F35: 0 | G35: 0 | H35: 0 | I35: 0 | J35: 0
C36: 6 | D36: Pořizovaný dlouhodobý finanční majetek | E36: 0 | F36: 0 | G36: 0 | H36: 0 | I36: 0 | J36: 0
C37: 7 | D37: Poskytnuté zálohy na dlouhodobý finanční majetek | E37: 0 | F37: 0 | G37: 0 | H37: 10651 | I37: 0 | J37: 0
A38: C. | D38: Oběžná aktiva | E38: =E39+E46+E55+E65 -> 749637 | F38: =F39+F46+F55+F65 -> 737646 | G38: 515809 | H38: 608020 | I38: 874592 | J38: 899306 | K38: =K39+K46+K55+K65 -> 0 | L38: 0 | M38: 0 | N38: 0 | O38: 0 | P38: 0
A39: C. | B39: I. | D39: Zásoby | E39: =SUM(E40:E45) -> 317443 | F39: 388815 | G39: 257980 | H39: 301385 | I39: =SUM(I40:I45) -> 417721 | J39: =SUM(J40:J45) -> 411321 | K39: =SUM(K40:K45) -> 0 | L39: 0 | M39: 0 | N39: 0 | O39: 0 | P39: 0
A40: C. | B40: I. | C40: 1 | D40: Materiál | E40: 96510 | F40: 122265 | G40: 65153 | H40: 87207 | I40: 132153 | J40: 117253
C41: 2 | D41: Nedokončená výroba a polotovary | E41: 63786 | F41: 76529 | G41: 49256 | H41: 74418 | I41: 80499 | J41: 58471
C42: 3 | D42: Výrobky | E42: 102630 | F42: 124448 | G42: 102259 | H42: 100881 | I42: 143839 | J42: 173517
C43: 4 | D43: Mladá a ostatní zvířata a jejich skupiny | E43: 0 | F43: 0 | G43: 0 | H43: 0 | I43: 0 | J43: 0
C44: 5 | D44: Zboží | E44: 54513 | F44: 65552 | G44: 41312 | H44: 38837 | I44: 60407 | J44: 62048
C45: 6 | D45: Poskytnuté zálohy na zásoby | E45: 4 | F45: 21 | G45: 0 | H45: 42 | I45: 823 | J45: 32
A46: C. | B46: II. | D46: Dlouhodobé pohledávky | E46: =SUM(E47:E54) -> 52944 | F46: 0 | G46: 0 | H46: 362 | I46: =SUM(I47:I54) -> 116 | J46: =SUM(J47:J54) -> 0 | K46: 0 | L46: 0 | M46: 0 | N46: 0 | O46: 0 | P46: 0
A47: C. | B47: II. | C47: 1 | D47: Pohledávky z obchodních vztahů | E47: 0 | F47: 0 | G47: 0 | H47: 362 | I47: 116 | J47: 0
C48: 2 | D48: Pohledávky - ovládaná nebo ovládající osoba | E48: 0 | F48: 0 | G48: 0 | H48: 0 | I48: 0 | J48: 0
C49: 3 | D49: Pohledávky - podstatný vliv | E49: 0 | F49: 0 | G49: 0 | H49: 0 | I49: 0 | J49: 0
C50: 4 | D50: Pohledávky za společníky, členy družstva a za účastníky sdružení | E50: 0 | F50: 0 | G50: 0 | H50: 0 | I50: 0 | J50: 0
C51: 5 | D51: Dlouhodobé poskytnuté zálohy | E51: 0 | F51: 0 | G51: 0 | H51: 0 | I51: 0 | J51: 0
C52: 6 | D52: Dohadné účty aktivní | E52: 0 | F52: 0 | G52: 0 | H52: 0 | I52: 0 | J52: 0
C53: 7 | D53: Jiné pohledávky | E53: 0 | F53: 0 | G53: 0 | H53: 0 | I53: 0 | J53: 0
C54: 8 | D54: Odložená daňová pohledávka | E54: 52944 | F54: 0 | G54: 0 | H54: 0 | I54: 0 | J54: 0
A55: C. | B55: III. | D55: Krátkodobé pohledávky | E55: =SUM(E56:E64) -> 335093 | F55: 336929 | G55: 254614 | H55: 298688 | I55: =SUM(I56:I64) -> 448694 | J55: =SUM(J56:J64) -> 474703 | K55: 0 | L55: 0 | M55: 0 | N55: 0 | O55: 0 | P55: 0
A56: C. | B56: III. | C56: 1 | D56: Pohledávky z obchodních vztahů | E56: 326033 | F56: 271632 | G56: 225587 | H56: 290350 | I56: 118078 | J56: 125316
C57: 2 | D57: Pohledávky - ovládaná nebo ovládající osoba | F57: 58455 | G57: 0 | I57: 306580 | J57: 342538
C58: 3 | D58: Pohledávky - podstatný vliv | F58: 0 | G58: 0 | H58: 0 | I58: 0 | J58: 0
C59: 4 | D59: Pohledávky za společníky, členy družstva a za účastníky sdružení | F59: 0 | G59: 0 | H59: 0 | I59: 0 | J59: 0
C60: 5 | D60: Sociální zabezpečení a zdravotní pojištění | F60: 0 | G60: 0 | I60: 0 | J60: 0
C61: 6 | D61: Stát - daňové pohledávky | E61: 0 | F61: 2 | G61: 18641 | H61: 1528 | I61: 14106 | J61: 0
C62: 7 | D62: Krátkodobé poskytnuté zálohy | E62: 5589 | F62: 5208 | G62: 5368 | H62: 4044 | I62: 8522 | J62: 5364
C63: 8 | D63: Dohadné účty aktivní | E63: 960 | F63: 863 | G63: 4408 | H63: 1777 | I63: 139 | J63: 147
C64: 9 | D64: Jiné pohledávky | E64: 2511 | F64: 769 | G64: 610 | H64: 989 | I64: 1269 | J64: 1338
A65: C. | B65: IV. | D65: Krátkodobý finanční majetek | E65: =SUM(E66:E69) -> 44157 | F65: 11902 | G65: 3215 | H65: 7585 | I65: =SUM(I66:I69) -> 8061 | J65: =SUM(J66:J69) -> 13282 | K65: =SUM(K66:K69) -> 0 | L65: 0 | M65: 0 | N65: 0 | O65: 0 | P65: 0
A66: C. | B66: IV. | C66: 1 | D66: Peníze | E66: 297 | F66: 236 | G66: 324 | H66: 270 | I66: 238 | J66: 280
C67: 2 | D67: Účty v bankách | E67: 43860 | F67: 11666 | G67: 2891 | H67: 7315 | I67: 7823 | J67: 13002
C68: 3 | D68: Krátkodobý cenné papíry a podíly | E68: 0 | F68: 0 | G68: 0 | H68: 0 | I68: 0 | J68: 0
C69: 4 | D69: Pořizovaný krátkodobý finanční majetek | E69: 0 | F69: 0 | G69: 0 | H69: 0 | I69: 0 | J69: 0
A70: D. | B70: I. | D70: Časové rozlišení | E70: =SUM(E71:E73) -> 1032 | F70: 911 | G70: 1222 | H70: 784 | I70: =SUM(I71:I73) -> 871 | J70: =SUM(J71:J73) -> 1843 | K70: 0 | L70: 0 | M70: 0 | N70: 0 | O70: 0 | P70: 0
A71: D. | B71: I. | C71: 1 | D71: Náklady příštích období | E71: 984 | F71: 908 | G71: 1221 | H71: 783 | I71: 870 | J71: 1842
C72: 2 | D72: Komplexní náklady příštích období | G72: 0 | H72: 0 | I72: 0 | J72: 0
C73: 3 | D73: Příjmy příštích období | E73: 48 | F73: 3 | G73: 1 | H73: 1 | I73: 1 | J73: 1

Sheet Pasiva
D6: Pasiva
E7: 2007-12-31 | F7: 2008-12-31 | G7: 2009-12-31 | H7: 2010-12-31 | I7: 2011-12-31 | J7: 2012-12-31 | K7: 2013-12-31 | L7: 2014-12-31 | M7: 2015-12-31 | N7: 2016-12-31 | O7: 2017-12-31 | P7: 2018-12-31
D8: PASIVA CELKEM | E8: =E9+E29+E62 -> 1568557 | F8: 1679538 | G8: 1434359 | H8: 1533886 | I8: 1760328 | J8: 1737093 | K8: 0 | L8: 0 | M8: 0 | N8: 0 | O8: 0 | P8: 0
A9: A. | D9: Vlastní kapitál | E9: =E10+E14+E21+E28+E24 -> 913185 | F9: =F10+F14+F21+F28+F24 -> 767519 | G9: 686701 | H9: 761966 | I9: =I10+I14+I21+I28+I24 -> 924071 | J9: 1044250 | K9: =K10+K14+K21+K28+K24 -> 0 | L9: 0 | M9: 0 | N9: 0 | O9: 0 | P9: 0
A10: A. | B10: I. | D10: Základní kapitál | E10: =SUM(E11:E13) -> 335000 | F10: =SUM(F11:F13) -> 335000 | G10: 335000 | H10: 335000 | I10: =SUM(I11:I13) -> 335000 | J10: =SUM(J11:J13) -> 335000 | K10: 0 | L10: 0 | M10: 0 | N10: 0 | O10: 0 | P10: 0
C11: 1 | D11: Základní kapitál | E11: 335000 | F11: 335000 | G11: 335000 | H11: 335000 | I11: 335000 | J11: 335000
C12: 2 | D12: Vlastní akcie a vlastní obchodní podíly (-) | E12: 0 | F12: 0 | G12: 0 | H12: 0 | I12: 0 | J12: 0
C13: 3 | D13: Změny základního kapitálu | E13: 0 | F13: 0 | G13: 0 | H13: 0 | I13: 0 | J13: 0
A14: A. | B14: II. | D14: Kapitálové fondy | E14: =SUM(E15:E20) -> -3314 | F14: =SUM(F15:F20) -> -3595 | G14: =SUM(G16:G20) -> -3161 | H14: =SUM(H16:H20) -> -3178 | I14: -6076 | J14: -9851 | K14: 0 | L14: 0 | M14: 0 | N14: 0 | O14: 0 | P14: 0
A15: A. | B15: II. | C15: 1 | D15: Emisní ážio | E15: 0 | F15: 0 | G15: 0 | H15: 0 | I15: 0 | J15: 0
C16: 2 | D16: Ostatní kapitálové fondy | E16: 0 | F16: 0 | G16: 0 | H16: 0 | I16: 0 | J16: 0
C17: 3 | D17: Oceňovací rozdíly z přecenění majetku a závazků | E17: -3314 | F17: -3595 | G17: -3161 | H17: -3178 | I17: -6076 | J17: -9851
C18: 4 | D18: Oceňovací rozdíly z přecenění při přeměnách společností | E18: 0 | F18: 0 | G18: 0 | H18: 0 | I18: 0 | J18: 0
C19: 5 | D19: Vypořádání rozdílu z přeměn společností | E19: 0 | F19: 0 | G19: 0 | H19: 0 | I19: 0 | J19: 0
C20: 6 | D20: Rozdíly z ocenění při přeměnách společností | E20: 0 | F20: 0 | G20: 0 | H20: 0 | I20: 0 | J20: 0
A21: A. | B21: III. | D21: Rezervní fondy, nedělitelný fond a ostatní fondy ze zisku | E21: =SUM(E22:E23) -> 32500 | F21: =SUM(F22:F23) -> 33500 | G21: 33500 | H21: 33500 | I21: 33500 | J21: 33500 | K21: 0 | L21: 0 | M21: 0 | N21: 0 | O21: 0 | P21: 0
A22: A. | B22: III. | C22: 1 | D22: Zákonný rezervní fond / Nedělitelný fond | E22: 32500 | F22: 33500 | G22: 33500 | H22: 33500 | I22: 33500 | J22: 33500
C23: 2 | D23: Statutární a ostatní fondy | E23: 0 | F23: 0 | G23: 0 | H23: 0 | I23: 0 | J23: 0
A24: A. | B24: IV. | D24: Výsledek hospodaření minulých let | E24: =SUM(E25:E27) -> 191054 | F24: =SUM(F25:F27) -> 197999 | G24: 252614 | H24: 221362 | I24: =SUM(I25:I27) -> 196644 | J24: 361647 | K24: 0 | L24: 0 | M24: 0 | N24: 0 | O24: 0 | P24: 0
A25: A. | B25: IV. | C25: 1 | D25: Nerozdělený zisk minulých let | E25: 191054 | F25: 197999 | G25: 252614 | H25: 221362 | I25: 196644 | J25: 361647
C26: 2 | D26: Neuhrazená ztráta minulých let | E26: 0 | F26: 0 | G26: 0 | H26: 0 | I26: 0 | J26: 0
C27: 3 | D27: Jiný výsledek hospodaření minulých let | E27: 0 | F27: 0 | G27: 0 | H27: 0 | I27: 0 | J27: 0
A28: A. | B28: V. | D28: Výsledek hospodaření běžného účetního období (+/-) | E28: 357945 | F28: 204615 | G28: 68748 | H28: 175282 | I28: 365003 | J28: 323954 | K28: 0 | L28: 0 | M28: 0 | N28: 0 | O28: 0 | P28: 0
A29: B. | D29: Cizí zdroje | E29: =E30+E35+E46+E58 -> 648065 | F29: =F30+F35+F46+F58 -> 911387 | G29: 747405 | H29: 771813 | I29: 836117 | J29: 692781 | K29: 0 | L29: 0 | M29: 0 | N29: 0 | O29: 0 | P29: 0
A30: B. | B30: I. | D30: Rezervy | E30: =SUM(E31:E34) -> 19104 | F30: =SUM(F31:F34) -> 12464 | G30: 5973 | H30: 9215 | I30: =SUM(I31:I34) -> 26000 | J30: 32469 | K30: 0 | L30: 0 | M30: 0 | N30: 0 | O30: 0 | P30: 0
A31: B. | B31: I. | C31: 1 | D31: Rezervy podle zvláštních právních předpisů | E31: 8118 | F31: 0 | G31: 0 | H31: 0 | I31: 0 | J31: 0
C32: 2 | D32: Rezerva na důchody a podobné závazky | E32: 0 | F32: 0 | G32: 0 | H32: 0 | I32: 0 | J32: 0
C33: 3 | D33: Rezerva na daň z příjmů | E33: 1091 | F33: 1848 | G33: 0 | H33: 0 | I33: 0 | J33: 0
C34: 4 | D34: Ostatní rezervy | E34: 9895 | F34: 10616 | G34: 5973 | H34: 9215 | I34: 26000 | J34: 32469
A35: B. | B35: II. | D35: Dlouhodobé závazky | E35: =SUM(E36:E45) -> 0 | F35: =SUM(F36:F45) -> 41669 | G35: 51973 | H35: 59273 | I35: 57014 | J35: 51518 | K35: =SUM(K36:K45) -> 0 | L35: 0 | M35: 0 | N35: 0 | O35: 0 | P35: 0
A36: B. | B36: II. | C36: 1 | D36: Závazky z obchodních vztahů | E36: 0 | F36: 0 | G36: 0 | H36: 0 | I36: 0 | J36: 0
C37: 2 | D37: Závazky - ovládaná nebo ovládající osoba | E37: 0 | F37: 0 | G37: 0 | H37: 0 | I37: 0 | J37: 0
C38: 3 | D38: Závazky - podstatný vliv | E38: 0 | F38: 0 | G38: 0 | H38: 0 | I38: 0 | J38: 0
C39: 4 | D39: Závazky ke společníkům, členům družstva a k účastníkům sdružení | E39: 0 | F39: 0 | G39: 0 | H39: 0 | I39: 0 | J39: 0
C40: 5 | D40: Dlouhodobé přijaté zálohy | E40: 0 | F40: 0 | G40: 0 | H40: 0 | I40: 0 | J40: 0
C41: 6 | D41: Vydané dluhopisy | E41: 0 | F41: 0 | G41: 0 | H41: 0 | I41: 0 | J41: 0
C42: 7 | D42: Dlouhodobé směnky k úhradě | E42: 0 | F42: 0 | G42: 0 | H42: 0 | I42: 0 | J42: 0
C43: 8 | D43: Dohadné účty pasívní | E43: 0 | F43: 0 | G43: 0 | H43: 0 | I43: 0 | J43: 0
C44: 9 | D44: Jiné závazky | E44: 0 | F44: 0 | G44: 0 | H44: 0 | I44: 0 | J44: 0
C45: 10 | D45: Odložený daňový závazek | E45: 0 | F45: 41669 | G45: 51973 | H45: 59273 | I45: 57014 | J45: 51518
A46: B. | B46: III. | D46: Krátkodobé závazky | E46: =SUM(E47:E57) -> 238518 | F46: =SUM(F47:F57) -> 211036 | G46: 88302 | H46: 167628 | I46: 171537 | J46: 193433 | K46: =SUM(K47:K57) -> 0 | L46: 0 | M46: 0 | N46: 0 | O46: 0 | P46: 0
A47: B. | B47: III. | C47: 1 | D47: Závazky z obchodních vztahů | E47: 179791 | F47: 161030 | G47: 58432 | H47: 118279 | I47: 44362 | J47: 37348
C48: 2 | D48: Závazky - ovládaná nebo ovládající osoba | E48: 0 | F48: 0 | G48: 0 | H48: 0 | I48: 76264 | J48: 81662
C49: 3 | D49: Závazky - podstatný vliv | E49: 0 | F49: 0 | G49: 0 | H49: 0 | I49: 0 | J49: 0
C50: 4 | D50: Závazky ke společníkům, členům družstva a k účastníkům sdružení | E50: 0 | F50: 0 | G50: 0 | H50: 0 | I50: 0 | J50: 0
C51: 5 | D51: Závazky k zaměstnancům | E51: 10149 | F51: 13899 | G51: 9441 | H51: 13414 | I51: 14620 | J51: 14380
C52: 6 | D52: Závazky ze sociálního zabezpečení a zdravotního pojištění | E52: 6155 | F52: 7120 | G52: 5615 | H52: 8150 | I52: 8694 | J52: 7800
C53: 7 | D53: Stát - daňové závazky a dotace | E53: 1559 | F53: 2592 | G53: 1145 | H53: 1755 | I53: 2068 | J53: 8308
C54: 8 | D54: Kratkodobé přijaté zálohy | E54: 1477 | F54: 100 | G54: 315 | H54: 1693 | I54: 256 | J54: 513
C55: 9 | D55: Vydané dluhopisy | E55: 0 | F55: 0 | G55: 0 | H55: 0 | I55: 0 | J55: 0
C56: 10 | D56: Dohadné účty pasivní | E56: 39257 | F56: 25865 | G56: 12951 | H56: 24157 | I56: 25262 | J56: 43421
C57: 11 | D57: Jiné závazky | E57: 130 | F57: 430 | G57: 403 | H57: 180 | I57: 11 | J57: 1
A58: B. | B58: IV. | D58: Bankovní úvěry a výpomoci | E58: =SUM(E59:E61) -> 390443 | F58: =SUM(F59:F61) -> 646218 | G58: 601157 | H58: 535697 | I58: 581566 | J58: 415361 | K58: =SUM(K59:K61) -> 0 | L58: 0 | M58: 0 | N58: 0 | O58: 0 | P58: 0
A59: B. | B59: IV. | C59: 1 | D59: Bankovní úvěry dlouhodobé | E59: 0 | F59: 0 | G59: 0 | H59: 0 | I59: 0 | J59: 0
C60: 2 | D60: Krátkodobé bankovní úvěry | E60: 390443 | F60: 646218 | G60: 601157 | H60: 535697 | I60: 581566 | J60: 415361
C61: 3 | D61: Krátkodobé finanční výpomoci | E61: 0 | F61: 0 | G61: 0 | H61: 0 | I61: 0 | J61: 0
A62: C. | B62: I. | D62: Časové rozlišení | E62: =SUM(E63:E64) -> 7307 | F62: =SUM(F63:F64) -> 632 | G62: 253 | H62: 107 | I62: 140 | J62: 62 | K62: =SUM(K63:K64) -> 0 | L62: 0 | M62: 0 | N62: 0 | O62: 0 | P62: 0
A63: C. | B63: I. | C63: 1 | D63: Výdaje příštích období | E63: 7307 | F63: 632 | G63: 253 | H63: 107 | I63: 140 | J63: 62
C64: 2 | D64: Výnosy příštích období | E64: 0 | F64: 0 | G64: 0 | H64: 0 | I64: 0 | J64: 0

Sheet VZZ
D6: Výkaz zisků a ztráty
E7: 2007-12-31 | F7: 2008-12-31 | G7: 2009-12-31 | H7: 2010-12-31 | I7: 2011-12-31 | J7: 2012-12-31 | K7: 2013-12-31 | L7: 2014-12-31 | M7: 2015-12-31 | N7: 2016-12-31 | O7: 2017-12-31 | P7: 2018-12-31
A8: I. | D8: Tržby za prodej zboží | E8: 211096 | F8: 201394 | G8: 106616 | H8: 124672 | I8: 186271 | J8: 213890
A9: A. | D9: Náklady vynaložené na prodané zboží | E9: 144891 | F9: 140289 | G9: 74773 | H9: 90238 | I9: 133981 | J9: 152805
A10: + | D10: Obchodní marže | E10: 66205 | F10: 61105 | G10: =G8-G9 -> 31843 | H10: =H8-H9 -> 34434 | I10: =I8-I9 -> 52290 | J10: 61085 | K10: =K8-K9 -> 0 | L10: 0 | M10: 0 | N10: 0 | O10: 0 | P10: 0
A11: II. | D11: Výkony | E11: =E12+E13+E14 -> 1389950 | F11: 1402622 | G11: =G12+G13+G14 -> 866983 | H11: =H12+H13+H14 -> 1232601 | I11: 1635520 | J11: 1726009 | K11: =K12+K13+K14 -> 0 | L11: 0 | M11: 0 | N11: 0 | O11: 0 | P11: 0
B12: II. | C12: 1 | D12: Tržby za prodej vlastních výrobků a služeb | E12: 1360395 | F12: 1366067 | G12: 912130 | H12: 1195723 | I12: 1583000 | J12: 1691421
C13: 2 | D13: Změna stavu zásob vlastní činnosti | E13: 29555 | F13: 36555 | G13: -45147 | H13: 36878 | I13: 44220 | J13: 26046
C14: 3 | D14: Aktivace | E14: 0 | F14: 0 | G14: 0 | H14: 0 | I14: 8300 | J14: 8542
A15: B. | D15: Výkonová spotřeba | E15: =SUM(E16:E17) -> 710362 | F15: 731659 | G15: =SUM(G16:G17) -> 437985 | H15: =SUM(H16:H17) -> 605284 | I15: 848555 | J15: 898117 | K15: =SUM(K16:K17) -> 0 | L15: 0 | M15: 0 | N15: 0 | O15: 0 | P15: 0
A16: B. | C16: 1 | D16: Spotřeba materiálu a energie | E16: 529497 | F16: 547196 | G16: 320045 | H16: 455860 | I16: 653065 | J16: 700740
A17: B. | C17: 2 | D17: Služby | E17: 180865 | F17: 184463 | G17: 117940 | H17: 149424 | I17: 195490 | J17: 197377
A18: + | D18: Přidaná hodnota | E18: =E10+E11-E15 -> 745793 | F18: 732068 | G18: =G10+G11-G15 -> 460841 | H18: =H10+H11-H15 -> 661751 | I18: 839255 | J18: 888977 | K18: =K10+K11-K15 -> 0 | L18: 0 | M18: 0 | N18: 0 | O18: 0 | P18: 0
A19: C. | D19: Osobní náklady | E19: =SUM(E20:E23) -> 255305 | F19: =SUM(F20:F23) -> 320388 | G19: 201745 | H19: 264483 | I19: 320766 | J19: 343410 | K19: =SUM(K20:K23) -> 0 | L19: 0 | M19: 0 | N19: 0 | O19: 0 | P19: 0
A20: C. | C20: 1 | D20: Mzdové náklady | E20: 146727 | F20: 184537 | G20: 145732 | H20: 191475 | I20: 232539 | J20: 253454
A21: C. | C21: 2 | D21: Odměny členům orgánů společnosti a družstva | E21: 51440 | F21: 63985 | G21: 0 | H21: 0 | I21: 0 | J21: 0
A22: C. | C22: 3 | D22: Náklady na sociální zabezpečení a zdravotní pojištění | E22: 51440 | F22: 63985 | G22: 48960 | H22: 64534 | I22: 78108 | J22: 79192
A23: C. | C23: 4 | D23: Sociální náklady | E23: 5698 | F23: 7881 | G23: 7053 | H23: 8474 | I23: 10119 | J23: 10764
A24: D. | D24: Daně a poplatky | E24: 544 | F24: 650 | G24: 439 | H24: 603 | I24: 682 | J24: 622
A25: E. | D25: Odpisy dlouhodobého nehmotného a hmotného majetku | E25: 104231 | F25: 124097 | G25: 145454 | H25: 153689 | I25: 158599 | J25: 148419
A26: III. | D26: Tržby z prodeje dlouhodobého majetku a materiálu | E26: =SUM(E27:E28) -> 13316 | F26: 9170 | G26: =SUM(G27:G28) -> 5355 | H26: =SUM(H27:H28) -> 8242 | I26: 86195 | J26: 92908 | K26: =SUM(K27:K28) -> 0 | L26: 0 | M26: 0 | N26: 0 | O26: 0 | P26: 0
B27: III. | C27: 1 | D27: Tržby z prodeje dlouhodobého majetku | E27: 3033 | F27: 264 | G27: 202 | H27: 1660 | I27: 23318 | J27: 14
C28: 2 | D28: Tržby z prodeje materiálu | E28: 10283 | F28: 8906 | G28: 5153 | H28: 6582 | I28: 62877 | J28: 92894
A29: F. | D29: Zůstatková cena prodaného dlouhodobého majetku a materiálu | E29: =E30+E31 -> 5179 | F29: 3436 | G29: =G30+G31 -> 2739 | H29: =H30+H31 -> 6675 | I29: 65680 | J29: 74674 | K29: =K30+K31 -> 0 | L29: 0 | M29: 0 | N29: 0 | O29: 0 | P29: 0
A30: F. | C30: 1 | D30: Zůstatková cena prodaného dlouhodobého majetku | E30: 2911 | F30: 138 | G30: 58 | H30: 933 | I30: 22164 | J30: 3
A31: F. | C31: 2 | D31: Prodaný materiál | E31: 2268 | F31: 3298 | G31: 2681 | H31: 5742 | I31: 43516 | J31: 74671
A32: G. | D32: Změna stavu rezerv a opravných položek v provozní oblasti a komplexních nákladů příštích období | E32: -596 | F32: -10576 | G32: 35067 | H32: -10867 | I32: -1732 | J32: 15865
A33: IV. | D33: Ostatní provozní výnosy | E33: 11966 | F33: 10119 | G33: 10220 | H33: 11606 | I33: 11414 | J33: 11583
A34: H. | D34: Ostatní provozní náklady | E34: 8677 | F34: 9345 | G34: 8989 | H34: 6848 | I34: 9612 | J34: 29495
A35: V. | D35: Převod provozních výnosů | E35: 0 | F35: 0 | G35: 0 | H35: 0 | I35: 0 | J35: 0
A36: I. | D36: Převod provozních nákladů | E36: 0 | F36: 0 | G36: 0 | H36: 0 | I36: 0 | J36: 0
A37: * | D37: Provozní výsledek hospodaření | E37: 459155 | F37: 358022 | G37: 96829 | H37: 260168 | I37: 383257 | J37: 382983 | K37: 0 | L37: 0 | M37: 0 | N37: 0 | O37: 0 | P37: 0
A38: VI | D38: Tržby z prodeje cenných papírů a podílů | E38: 0 | F38: 0 | G38: 0 | H38: 0 | I38: 0 | J38: 0
A39: J. | D39: Prodané cenné papíry a podíly | E39: 0 | F39: 0 | G39: 0 | H39: 0 | I39: 0 | J39: 0
B40: VII. | D40: Výnosy z dlouhodobého finančního majetku | E40: 22586 | F40: 24627 | G40: 0 | H40: 0 | I40: 20173 | J40: 0 | K40: 0 | L40: 0 | M40: 0 | N40: 0 | O40: 0 | P40: 0
B41: VII. | C41: 1 | D41: Výnosy z podílů v ovládaných osobách a v účetních jednotkách pod podstatným vlivem | E41: 22586 | F41: 24627 | G41: 0 | H41: 0 | I41: 20173 | J41: 0
B42: VII. | C42: 2 | D42: Výnosy z ostatních dlouhodobých cenných papírů a podílů | E42: 0 | F42: 0 | G42: 0 | H42: 0 | I42: 0 | J42: 0
B43: VII. | C43: 3 | D43: Výnosy z ostatního dlouhodobého finančního majetku | E43: 0 | F43: 0 | G43: 0 | H43: 0 | I43: 0 | J43: 0
B44: VIII. | D44: Výnosy z krátkodobého finančního majetku | E44: 0 | F44: 0 | G44: 0 | H44: 0 | I44: 0 | J44: 0
A45: K. | D45: Náklady z finančního majetku | E45: 0 | F45: 0 | G45: 0 | H45: 0 | I45: 0 | J45: 0
B46: IX. | D46: Výnosy z přecenění cenných papírů a derivátů | E46: 0 | F46: 0 | G46: 0 | H46: 0 | I46: 0 | J46: 0
A47: L. | D47: Náklady z přecenění cenných papírů a derivátů | E47: 0 | F47: 0 | G47: 0 | H47: 0 | I47: 0 | J47: 0
A48: M. | D48: Změna stavu rezerv a opravných položek ve finanční oblasti | E48: 0 | F48: 0 | G48: 0 | H48: 0 | I48: -2793 | J48: 31539
A49: X. | D49: Výnosové úroky | E49: 1110 | F49: 3244 | G49: 1818 | H49: 109 | I49: 312 | J49: 76
A50: N. | D50: Nákladové úroky | E50: 11412 | F50: 27200 | G50: 26759 | H50: 16170 | I50: 14257 | J50: 10823
A51: XI. | D51: Ostatní finanční výnosy | E51: 22686 | F51: 55085 | G51: 118 | H51: 5 | I51: 31038 | J51: 16713
A52: O. | D52: Ostatní finanční náklady | E52: 33723 | F52: 66448 | G52: 10645 | H52: 6334 | I52: 25705 | J52: 24540
A53: XII. | D53: Převod finančních výnosů | E53: 0 | F53: 0 | G53: 0 | H53: 0 | I53: 0 | J53: 0
A54: P. | D54: Převod finančních nákladů | E54: 0 | F54: 0 | G54: 0 | H54: 0 | I54: 0 | J54: 0
A55: * | D55: Finanční výsledek hospodaření | E55: 1247 | F55: -10692 | G55: -13058 | H55: -22390 | I55: 14354 | J55: -24168 | K55: 0 | L55: 0 | M55: 0 | N55: 0 | O55: 0 | P55: 0
A56: Q. | D56: Daň z příjmů za běžnou činnost | E56: =SUM(E57:E58) -> 102457 | F56: 142715 | G56: =SUM(G57:G58) -> 15023 | H56: =SUM(H57:H58) -> 42965 | I56: 32608 | J56: 34861 | K56: =SUM(K57:K58) -> 0 | L56: 0 | M56: 0 | N56: 0 | O56: 0 | P56: 0
A57: Q. | C57: 1 | D57: -splatná | E57: 46302 | F57: 48102 | G57: 4719 | H57: 35665 | I57: 34867 | J57: 40357
A58: Q. | C58: 2 | D58: -odložená | E58: 56155 | F58: 94613 | G58: 10304 | H58: 7300 | I58: -2259 | J58: -5496
A59: ** | D59: Výsledek hospodaření za běžnou činnost | E59: 357945 | F59: =F37+F55-F56 -> 204615 | G59: =G37+G55-G56 -> 68748 | H59: =H37+H55-H56 -> 194813 | I59: 365003 | J59: 323954 | K59: 0 | L59: 0 | M59: 0 | N59: 0 | O59: 0 | P59: 0
A60: XIII. | D60: Mimořádné výnosy | E60: 0 | F60: 0 | G60: 14846 | H60: 0 | I60: 0 | J60: 0
A61: R. | D61: Mimořádné náklady | E61: 0 | F61: 0 | G61: 0 | H61: 19531 | I61: 0 | J61: 0
A62: S. | D62: Daň z příjmů z mimořádné činnosti | E62: 0 | F62: 0 | G62: 0 | H62: 0 | I62: 0 | J62: 0 | K62: 0 | L62: 0 | M62: 0 | N62: 0 | O62: 0 | P62: 0
A63: S. | C63: 1 | D63: -splatná | E63: 0 | F63: 0 | G63: 0 | H63: 0 | I63: 0 | J63: 0
A64: S. | C64: 2 | D64: -odložená | E64: 0 | F64: 0 | G64: 0 | H64: 0 | I64: 0 | J64: 0
A65: * | D65: Mimořádný výsledek hospodaření | E65: 0 | F65: 0 | G65: 14846 | H65: -19531 | I65: 0 | J65: 0 | K65: 0 | L65: 0 | M65: 0 | N65: 0 | O65: 0 | P65: 0
A66: T. | D66: Převod podílu na výsledku hospodaření společníkům (+/-) | E66: 0 | F66: 0 | G66: 0 | H66: 0 | I66: 0 | J66: 0
A67: *** | D67: Výsledek hospodaření za účetní období (+/-) | E67: 357945 | F67: 204615 | G67: 68748 | H67: 175282 | I67: 365003 | J67: 323954 | K67: 0 | L67: 0 | M67: 0 | N67: 0 | O67: 0 | P67: 0
A68: **** | D68: Výsledek hospodaření před zdaněním (+/-) | E68: 460402 | F68: 347330 | G68: 83771 | H68: 218247 | I68: 397611 | J68: 358815 | K68: 0 | L68: 0 | M68: 0 | N68: 0 | O68: 0 | P68: 0

Sheet Rentabilita
B5: Ukazatelé rentability
F6: 2007 | G6: 2008 | H6: 2009 | I6: 2010 | J6: 2011 | K6: 2012 | L6: 2013 | M6: 2014 | N6: 2015 | O6: 2016 | P6: 2017 | Q6: 2018
B7: Rentabilita tržeb ROS | F7: =VZZ!E67/(VZZ!E11+VZZ!E8+VZZ!E26+VZZ!E38) -> 0.2217253627 | G7: =VZZ!F67/(VZZ!F11+VZZ!F8+VZZ!F26+VZZ!F38) -> 0.1268390626 | H7: =VZZ!G67/(VZZ!G11+VZZ!G8+VZZ!G26+VZZ!G38) -> 0.07022597589 | I7: =VZZ!H67/(VZZ!H11+VZZ!H8+VZZ!H26+VZZ!H38) -> 0.1283632915 | J7: =VZZ!I67/(VZZ!I11+VZZ!I8+VZZ!I26+VZZ!I38) -> 0.1913027664 | K7: =VZZ!J67/(VZZ!J11+VZZ!J8+VZZ!J26+VZZ!J38) -> 0.1593628908 | L7: =IF(VZZ!K67=0,0,VZZ!K67/(VZZ!K8+VZZ!K11+VZZ!K26+VZZ!K38)) -> 0 | M7: =IF(VZZ!L67=0,0,VZZ!L67/(VZZ!L8+VZZ!L11+VZZ!L26+VZZ!L38)) -> 0 | N7: =IF(VZZ!M67=0,0,VZZ!M67/(VZZ!M8+VZZ!M11+VZZ!M26+VZZ!M38)) -> 0 | O7: =IF(VZZ!N67=0,0,VZZ!N67/(VZZ!N8+VZZ!N11+VZZ!N26+VZZ!N38)) -> 0 | P7: =IF(VZZ!O67=0,0,VZZ!O67/(VZZ!O8+VZZ!O11+VZZ!O26+VZZ!O38)) -> 0 | Q7: =IF(VZZ!P67=0,0,VZZ!P67/(VZZ!P8+VZZ!P11+VZZ!P26+VZZ!P38)) -> 0
B8: Rentabilita aktiv ROA | F8: =IF(VZZ!E68=0,0,VZZ!E68/Aktiva!E8) -> 0.2935194577 | G8: =IF(VZZ!F68=0,0,VZZ!F68/Aktiva!F8) -> 0.2068009179 | H8: =IF(VZZ!G68=0,0,VZZ!G68/Aktiva!G8) -> 0.05840309156 | I8: =IF(VZZ!H68=0,0,VZZ!H68/Aktiva!H8) -> 0.142283716 | J8: =IF(VZZ!I68=0,0,VZZ!I68/Aktiva!I8) -> 0.2258732463 | K8: =IF(VZZ!J68=0,0,VZZ!J68/Aktiva!J8) -> 0.2065606159 | L8: =IF(VZZ!K68=0,0,VZZ!K68/Aktiva!K8) -> 0 | M8: =IF(VZZ!L68=0,0,VZZ!L68/Aktiva!L8) -> 0 | N8: =IF(VZZ!M68=0,0,VZZ!M68/Aktiva!M8) -> 0 | O8: =IF(VZZ!N68=0,0,VZZ!N68/Aktiva!N8) -> 0 | P8: =IF(VZZ!O68=0,0,VZZ!O68/Aktiva!O8) -> 0 | Q8: =IF(VZZ!P68=0,0,VZZ!P68/Aktiva!P8) -> 0
A182: =AVERAGE(F7:K7) -> 0.1496365583 | B182: 0.1496 | C182: 0.1496 | D182: 0.1496 | E182: 0.1496 | F182: 0.1496 | G182: 0.1496 | H182: 0.1496 | I182: 0.1496
A183: =AVERAGE(F8:K8) -> 0.1889068409 | B183: 0.1889 | C183: 0.1889 | D183: 0.1889 | E183: 0.1889 | F183: 0.1889 | G183: 0.1889 | H183: 0.1889 | I183: 0.1889

Sheet Aktivita
B5: Ukazatele aktivity
F6: 2007 | G6: 2008 | H6: 2009 | I6: 2010 | J6: 2011 | K6: 2012 | L6: 2013 | M6: 2014 | N6: 2015 | O6: 2016 | P6: 2017 | Q6: 2018
B7: Obrat celkových aktiv | F7: =IF(Aktiva!E8=0,0,(VZZ!E8+VZZ!E11+VZZ!E26+VZZ!E38)/Aktiva!E8) -> 1.029201999 | G7: =IF(Aktiva!F8=0,0,(VZZ!F8+VZZ!F11+VZZ!F26+VZZ!F38)/Aktiva!F8) -> 0.9604938977 | H7: =IF(Aktiva!G8=0,0,(VZZ!G8+VZZ!G11+VZZ!G26+VZZ!G38)/Aktiva!G8) -> 0.6825027765 | I7: =IF(Aktiva!H8=0,0,(VZZ!H8+VZZ!H11+VZZ!H26+VZZ!H38)/Aktiva!H8) -> 0.8902323902 | J7: =IF(Aktiva!I8=0,0,(VZZ!I8+VZZ!I11+VZZ!I26+VZZ!I38)/Aktiva!I8) -> 1.083880959 | K7: =IF(Aktiva!J8=0,0,(VZZ!J8+VZZ!J11+VZZ!J26+VZZ!J38)/Aktiva!J8) -> 1.170234985 | L7: =IF(Aktiva!K8=0,0,(VZZ!K8+VZZ!K11+VZZ!K26+VZZ!K38)/Aktiva!K8) -> 0 | M7: =IF(Aktiva!L8=0,0,(VZZ!L8+VZZ!L11+VZZ!L26+VZZ!L38)/Aktiva!L8) -> 0 | N7: =IF(Aktiva!M8=0,0,(VZZ!M8+VZZ!M11+VZZ!M26+VZZ!M38)/Aktiva!M8) -> 0 | O7: =IF(Aktiva!N8=0,0,(VZZ!N8+VZZ!N11+VZZ!N26+VZZ!N38)/Aktiva!N8) -> 0 | P7: =IF(Aktiva!O8=0,0,(VZZ!O8+VZZ!O11+VZZ!O26+VZZ!O38)/Aktiva!O8) -> 0 | Q7: =IF(Aktiva!P8=0,0,(VZZ!P8+VZZ!P11+VZZ!P26+VZZ!P38)/Aktiva!P8) -> 0
B8: Doba obratu pohledávek [den] | F8: =IF(Aktiva!E55=0,0,Aktiva!E55/((VZZ!E8+VZZ!E11+VZZ!E26+VZZ!E38)/360)) -> 74.72517316 | G8: =IF(Aktiva!F55=0,0,Aktiva!F55/((VZZ!F8+VZZ!F11+VZZ!F26+VZZ!F38)/360)) -> 75.1893706 | H8: =IF(Aktiva!G55=0,0,Aktiva!G55/((VZZ!G8+VZZ!G11+VZZ!G26+VZZ!G38)/360)) -> 93.63161088 | I8: =IF(Aktiva!H55=0,0,Aktiva!H55/((VZZ!H8+VZZ!H11+VZZ!H26+VZZ!H38)/360)) -> 78.74514744 | J8: =IF(Aktiva!I55=0,0,Aktiva!I55/((VZZ!I8+VZZ!I11+VZZ!I26+VZZ!I38)/360)) -> 84.65986648 | K8: =IF(Aktiva!J55=0,0,Aktiva!J55/((VZZ!J8+VZZ!J11+VZZ!J26+VZZ!J38)/360)) -> 84.06753814 | L8: =IF(Aktiva!K55=0,0,Aktiva!K55/((VZZ!K8+VZZ!K11+VZZ!K26+VZZ!K38)/360)) -> 0 | M8: =IF(Aktiva!L55=0,0,Aktiva!L55/((VZZ!L8+VZZ!L11+VZZ!L26+VZZ!L38)/360)) -> 0 | N8: =IF(Aktiva!M55=0,0,Aktiva!M55/((VZZ!M8+VZZ!M11+VZZ!M26+VZZ!M38)/360)) -> 0 | O8: =IF(Aktiva!N55=0,0,Aktiva!N55/((VZZ!N8+VZZ!N11+VZZ!N26+VZZ!N38)/360)) -> 0 | P8: =IF(Aktiva!O55=0,0,Aktiva!O55/((VZZ!O8+VZZ!O11+VZZ!O26+VZZ!O38)/360)) -> 0 | Q8: =IF(Aktiva!P55=0,0,Aktiva!P55/((VZZ!P8+VZZ!P11+VZZ!P26+VZZ!P38)/360)) -> 0

Sheet Zadluženost
B5: Ukazatele zadluženosti
F6: 2007 | G6: 2008 | H6: 2009 | I6: 2010 | J6: 2011 | K6: 2012 | L6: 2013 | M6: 2014 | N6: 2015 | O6: 2016 | P6: 2017 | Q6: 2018
B7: Celková zadluženost | F7: =IF(Pasiva!E29=0,0,(Pasiva!E29/Pasiva!E8)) -> 0.4131599935 | G7: =IF(Pasiva!F29=0,0,(Pasiva!F29/Pasiva!F8)) -> 0.5426414883 | H7: =IF(Pasiva!G29=0,0,(Pasiva!G29/Pasiva!G8)) -> 0.5210724791 | I7: =IF(Pasiva!H29=0,0,(Pasiva!H29/Pasiva!H8)) -> 0.5031749426 | J7: =IF(Pasiva!I29=0,0,(Pasiva!I29/Pasiva!I8)) -> 0.4749779587 | K7: =IF(Pasiva!J29=0,0,(Pasiva!J29/Pasiva!J8)) -> 0.3988162983 | L7: =IF(Pasiva!K29=0,0,(Pasiva!K29/Pasiva!K8)) -> 0 | M7: =IF(Pasiva!L29=0,0,(Pasiva!L29/Pasiva!L8)) -> 0 | N7: =IF(Pasiva!M29=0,0,(Pasiva!M29/Pasiva!M8)) -> 0 | O7: =IF(Pasiva!N29=0,0,(Pasiva!N29/Pasiva!N8)) -> 0 | P7: =IF(Pasiva!O29=0,0,(Pasiva!O29/Pasiva!O8)) -> 0 | Q7: =IF(Pasiva!P29=0,0,(Pasiva!P29/Pasiva!P8)) -> 0

Sheet Likvidita
B5: Ukazatelé likvidity
F6: 2007 | G6: 2008 | H6: 2009 | I6: 2010 | J6: 2011 | K6: 2012 | L6: 2013 | M6: 2014 | N6: 2015 | O6: 2016 | P6: 2017 | Q6: 2018
B7: Běžná likvidita | F7: =IF(Aktiva!E38=0,0,Aktiva!E38/Pasiva!E46) -> 3.142894876 | G7: =IF(Aktiva!F38=0,0,Aktiva!F38/Pasiva!F46) -> 3.495356243 | H7: =IF(Aktiva!G38=0,0,Aktiva!G38/Pasiva!G46) -> 5.84141922 | I7: =IF(Aktiva!H38=0,0,Aktiva!H38/Pasiva!H46) -> 3.62719832 | J7: =IF(Aktiva!I38=0,0,Aktiva!I38/Pasiva!I46) -> 5.098561826 | K7: =IF(Aktiva!J38=0,0,Aktiva!J38/Pasiva!J46) -> 4.649186023 | L7: =IF(Aktiva!K38=0,0,Aktiva!K38/Pasiva!K46) -> 0 | M7: =IF(Aktiva!L38=0,0,Aktiva!L38/Pasiva!L46) -> 0 | N7: =IF(Aktiva!M38=0,0,Aktiva!M38/Pasiva!M46) -> 0 | O7: =IF(Aktiva!N38=0,0,Aktiva!N38/Pasiva!N46) -> 0 | P7: =IF(Aktiva!O38=0,0,Aktiva!O38/Pasiva!O46) -> 0 | Q7: =IF(Aktiva!P38=0,0,Aktiva!P38/Pasiva!P46) -> 0
B8: Pohotová likvidita | F8: =IF(Aktiva!E38=0,0,(Aktiva!E38-Aktiva!E39)/Pasiva!E46) -> 1.811997417 | G8: =IF(Aktiva!F38=0,0,(Aktiva!F38-Aktiva!F39)/Pasiva!F46) -> 1.652945469 | H8: =IF(Aktiva!G38=0,0,(Aktiva!G38-Aktiva!G39)/Pasiva!G46) -> 2.91985459 | I8: =IF(Aktiva!H38=0,0,(Aktiva!H38-Aktiva!H39)/Pasiva!H46) -> 1.829258835 | J8: =IF(Aktiva!I38=0,0,(Aktiva!I38-Aktiva!I39)/Pasiva!I46) -> 2.663396235 | K8: =IF(Aktiva!J38=0,0,(Aktiva!J38-Aktiva!J39)/Pasiva!J46) -> 2.522759819 | L8: =IF(Aktiva!K38=0,0,(Aktiva!K38-Aktiva!K39)/Pasiva!K46) -> 0 | M8: =IF(Aktiva!L38=0,0,(Aktiva!L38-Aktiva!L39)/Pasiva!L46) -> 0 | N8: =IF(Aktiva!M38=0,0,(Aktiva!M38-Aktiva!M39)/Pasiva!M46) -> 0 | O8: =IF(Aktiva!N38=0,0,(Aktiva!N38-Aktiva!N39)/Pasiva!N46) -> 0 | P8: =IF(Aktiva!O38=0,0,(Aktiva!O38-Aktiva!O39)/Pasiva!O46) -> 0 | Q8: =IF(Aktiva!P38=0,0,(Aktiva!P38-Aktiva!P39)/Pasiva!P46) -> 0

Sheet Z-score
B5: Altmannův index finančního zdraví (Z-score) | F5: 2007 | G5: 2008 | H5: 2009 | I5: 2010 | J5: 2011 | K5: 2012 | L5: 2013 | M5: 2014 | N5: 2015 | O5: 2016 | P5: 2017 | Q5: 2018
F6: =IF(Aktiva!E8=0,0,(((Aktiva!E38-Pasiva!E46)/Aktiva!E8)*0.717+(Pasiva!E25/Aktiva!E8)*0.847+(VZZ!E68/Aktiva!E8)*3.107+(Pasiva!E9/(Pasiva!E35+Pasiva!E46+Pasiva!E58)*0.42+((VZZ!E8+VZZ!E11+VZZ!E26+VZZ!E38)/Aktiva!E8)*0.998))) -> 2.885707457 | G6: =IF(Aktiva!F8=0,0,(((Aktiva!F38-Pasiva!F46)/Aktiva!F8)*0.717+(Pasiva!F25/Aktiva!F8)*0.847+(VZZ!F68/Aktiva!F8)*3.107+(Pasiva!F9/(Pasiva!F35+Pasiva!F46+Pasiva!F58)*0.42+((VZZ!F8+VZZ!F11+VZZ!F26+VZZ!F38)/Aktiva!F8)*0.998))) -> 2.284371429 | H6: =IF(Aktiva!G8=0,0,(((Aktiva!G38-Pasiva!G46)/Aktiva!G8)*0.717+(Pasiva!G25/Aktiva!G8)*0.847+(VZZ!G68/Aktiva!G8)*3.107+(Pasiva!G9/(Pasiva!G35+Pasiva!G46+Pasiva!G58)*0.42+((VZZ!G8+VZZ!G11+VZZ!G26+VZZ!G38)/Aktiva!G8)*0.998))) -> 1.614463139 | I6: =IF(Aktiva!H8=0,0,(((Aktiva!H38-Pasiva!H46)/Aktiva!H8)*0.717+(Pasiva!H25/Aktiva!H8)*0.847+(VZZ!H68/Aktiva!H8)*3.107+(Pasiva!H9/(Pasiva!H35+Pasiva!H46+Pasiva!H58)*0.42+((VZZ!H8+VZZ!H11+VZZ!H26+VZZ!H38)/Aktiva!H8)*0.998))) -> 2.078270675 | J6: =IF(Aktiva!I8=0,0,(((Aktiva!I38-Pasiva!I46)/Aktiva!I8)*0.717+(Pasiva!I25/Aktiva!I8)*0.847+(VZZ!I68/Aktiva!I8)*3.107+(Pasiva!I9/(Pasiva!I35+Pasiva!I46+Pasiva!I58)*0.42+((VZZ!I8+VZZ!I11+VZZ!I26+VZZ!I38)/Aktiva!I8)*0.998))) -> 2.643559043 | K6: =IF(Aktiva!J8=0,0,(((Aktiva!J38-Pasiva!J46)/Aktiva!J8)*0.717+(Pasiva!J25/Aktiva!J8)*0.847+(VZZ!J68/Aktiva!J8)*3.107+(Pasiva!J9/(Pasiva!J35+Pasiva!J46+Pasiva!J58)*0.42+((VZZ!J8+VZZ!J11+VZZ!J26+VZZ!J38)/Aktiva!J8)*0.998))) -> 2.941579921 | L6: =IF(Aktiva!K8=0,0,(((Aktiva!K38-Pasiva!K46)/Aktiva!K8)*0.717+(Pasiva!K25/Aktiva!K8)*0.847+(VZZ!K68/Aktiva!K8)*3.107+(Pasiva!K9/(Pasiva!K35+Pasiva!K46+Pasiva!K58)*0.42+((VZZ!K8+VZZ!K11+VZZ!K26+VZZ!K38)/Aktiva!K8)*0.998))) -> 0 | M6: =IF(Aktiva!L8=0,0,(((Aktiva!L38-Pasiva!L46)/Aktiva!L8)*0.717+(Pasiva!L25/Aktiva!L8)*0.847+(VZZ!L68/Aktiva!L8)*3.107+(Pasiva!L9/(Pasiva!L35+Pasiva!L46+Pasiva!L58)*0.42+((VZZ!L8+VZZ!L11+VZZ!L26+VZZ!L38)/Aktiva!L8)*0.998))) -> 0 | N6: =IF(Aktiva!M8=0,0,(((Aktiva!M38-Pasiva!M46)/Aktiva!M8)*0.717+(Pasiva!M25/Aktiva!M8)*0.847+(VZZ!M68/Aktiva!M8)*3.107+(Pasiva!M9/(Pasiva!M35+Pasiva!M46+Pasiva!M58)*0.42+((VZZ!M8+VZZ!M11+VZZ!M26+VZZ!M38)/Aktiva!M8)*0.998))) -> 0 | O6: =IF(Aktiva!N8=0,0,(((Aktiva!N38-Pasiva!N46)/Aktiva!N8)*0.717+(Pasiva!N25/Aktiva!N8)*0.847+(VZZ!N68/Aktiva!N8)*3.107+(Pasiva!N9/(Pasiva!N35+Pasiva!N46+Pasiva!N58)*0.42+((VZZ!N8+VZZ!N11+VZZ!N26+VZZ!N38)/Aktiva!N8)*0.998))) -> 0 | P6: =IF(Aktiva!O8=0,0,(((Aktiva!O38-Pasiva!O46)/Aktiva!O8)*0.717+(Pasiva!O25/Aktiva!O8)*0.847+(VZZ!O68/Aktiva!O8)*3.107+(Pasiva!O9/(Pasiva!O35+Pasiva!O46+Pasiva!O58)*0.42+((VZZ!O8+VZZ!O11+VZZ!O26+VZZ!O38)/Aktiva!O8)*0.998))) -> 0 | Q6: =IF(Aktiva!P8=0,0,(((Aktiva!P38-Pasiva!P46)/Aktiva!P8)*0.717+(Pasiva!P25/Aktiva!P8)*0.847+(VZZ!P68/Aktiva!P8)*3.107+(Pasiva!P9/(Pasiva!P35+Pasiva!P46+Pasiva!P58)*0.42+((VZZ!P8+VZZ!P11+VZZ!P26+VZZ!P38)/Aktiva!P8)*0.998))) -> 0

Sheet prognoza
C16: Nápověda
C20: Ukazatelé rentability
G21: 2007 | H21: 2008 | I21: 2009 | J21: 2010 | K21: 2011 | L21: 2012 | M21: 2013 | N21: 2014 | O21: 2015 | P21: 2016 | Q21: 2017 | R21: 2018
C22: ROS [%] | G22: 0.2217253627 | H22: 0.1268390626 | I22: 0.07022597589 | J22: 0.1283632915 | K22: 0.1913027664 | L22: 0.1593628908 | M22: 0 | N22: 0 | O22: 0 | P22: 0 | Q22: 0 | R22: 0
C23: ROA [%] | G23: 0.2935194577 | H23: 0.2068009179 | I23: 0.05840309156 | J23: 0.142283716 | K23: 0.2258732463 | L23: 0.2065606159 | M23: 0 | N23: 0 | O23: 0 | P23: 0 | Q23: 0 | R23: 0
G24: 0 | H24: 0 | I24: 0 | J24: 0 | K24: 0 | L24: 0 | M24: 0 | N24: 0 | O24: 0 | P24: 0 | Q24: 0 | R24: 0
G31: 2007 | H31: 2008 | I31: 2009 | J31: 2010 | K31: 2011 | L31: 2012 | M31: 2013 | N31: 2014 | O31: 2015 | P31: 2016 | Q31: 2017 | R31: 2018
E32: ROA | G32: 0.2935194577 | H32: 0.2068009179 | I32: 0.05840309156 | J32: 0.142283716 | K32: 0.2258732463 | L32: 0.2065606159 | M32: 0 | N32: 0 | O32: 0 | P32: 0 | Q32: 0 | R32: 0
E33: Regresní funkce | G33: 0.3216164564 | H33: 0.1887344135 | I33: 0.1148743705 | J33: 0.07233823225 | K33: 0.04701898585 | L33: 0.03147722952 | M33: 0.0216600506 | N33: 0.01529129137 | O33: 0 | P33: 0 | Q33: 0 | R33: 0
